Workbook

Sheet AAPL and Google
A1: PRICES AND RETURNS FOR APPLE AND GOOGLE June 2007 - June 2012
A2: Monthly mean | B2: =AVERAGE(E11:E71) -> 0.02609253538 | C2: =AVERAGE(F11:F71) -> -0.002426902222 | D2: =getformula(C2) -> <-- =AVERAGE(F11:F71)
A3: Monthly variance | B3: =_xlfn.VAR.S(E11:E71) -> 0.01247769069 | C3: =_xlfn.VAR.S(F11:F71) -> 0.01017518017 | D3: =getformula(C3) -> <-- =VAR.S(F11:F71)
A4: Monthly standard deviation | B4: =_xlfn.STDEV.S(E11:E71) -> 0.1117035841 | C4: =_xlfn.STDEV.S(F11:F71) -> 0.1008720981 | D4: =getformula(C4) -> <-- =STDEV.S(F11:F71)
A6: Annual mean | B6: =12*B2 -> 0.3131104246 | C6: =12*C2 -> -0.02912282667 | D6: =getformula(C6) -> <-- =12*C2
A7: Annual variance | B7: =12*B3 -> 0.1497322883 | C7: =12*C3 -> 0.122102162 | D7: =getformula(C7) -> <-- =12*C3
A8: Annual standard deviation | B8: =SQRT(12)*B4 -> 0.386952566 | C8: =SQRT(12)*C4 -> 0.3494311978 | D8: =getformula(C8) -> <-- =SQRT(12)*C4
A10: Date | B10: AAPL | C10: Google | E10: AAPL | F10: Google
A11: 2007-06-01 | B11: 122.04 | C11: 580.11
A12: 2007-07-02 | B12: 131.76 | C12: 645.9 | E12: =LN(B12/B11) -> 0.07663322602 | F12: 0.1074269523 | G12: =getformula(F12) -> <-- =LN(C12/C11)
A13: 2007-08-01 | B13: 138.48 | C13: 599.39 | E13: 0.049743825 | F13: -0.07473222165 | G13: =getformula(F13) -> <-- =LN(C13/C12)
A14: 2007-09-04 | B14: 153.47 | C14: 592.64 | E14: 0.1027791973 | F14: -0.01132533938 | G14: <-- =LN(C14/C13)
A15: 2007-10-01 | B15: 189.95 | C15: 515.04 | E15: 0.2132557714 | F15: -0.1403425645 | G15: <-- =LN(C15/C14)
A16: 2007-11-01 | B16: 182.22 | C16: 540.96 | E16: -0.04154613135 | F16: 0.04910077141 | G16: <-- =LN(C16/C15)
A17: 2007-12-03 | B17: 198.08 | C17: 603.69 | E17: 0.08345624121 | F17: 0.1097154822 | G17: <-- =LN(C17/C16)
A18: 2008-01-02 | B18: 135.36 | C18: 506.38 | E18: -0.3807330936 | F18: -0.1757734456 | G18: <-- =LN(C18/C17)
A19: 2008-02-01 | B19: 125.02 | C19: 529.02 | E19: -0.07946417135 | F19: 0.04373886275 | G19: <-- =LN(C19/C18)
A20: 2008-03-03 | B20: 143.5 | C20: 544.1 | E20: 0.1378613107 | F20: 0.02810681516 | G20: <-- =LN(C20/C19)
A21: 2008-04-01 | B21: 173.95 | C21: 586.76 | E21: 0.1924328664 | F21: 0.07548282413 | G21: <-- =LN(C21/C20)
A22: 2008-05-01 | B22: 188.75 | C22: 613.4 | E22: 0.08165548653 | F22: 0.04440137406 | G22: <-- =LN(C22/C21)
A23: 2008-06-02 | B23: 167.44 | C23: 600.36 | E23: -0.11979831 | F23: -0.02148777639 | G23: <-- =LN(C23/C22)
A24: 2008-07-01 | B24: 158.95 | C24: 593.97 | E24: -0.05203539078 | F24: -0.01070066225 | G24: <-- =LN(C24/C23)
A25: 2008-08-01 | B25: 169.53 | C25: 555.71 | E25: 0.06444021495 | F25: -0.06658223759 | G25: <-- =LN(C25/C24)
A26: 2008-09-02 | B26: 113.66 | C26: 613.7 | E26: -0.3998183664 | F26: 0.09925963395 | G26: <-- =LN(C26/C25)
A27: 2008-10-01 | B27: 107.59 | C27: 525.79 | E27: -0.05488382926 | F27: -0.1546043159 | G27: <-- =LN(C27/C26)
A28: 2008-11-03 | B28: 92.67 | C28: 450.02 | E28: -0.149282911 | F28: -0.1556098673 | G28: <-- =LN(C28/C27)
A29: 2008-12-01 | B29: 85.35 | C29: 484.85 | E29: -0.08228434636 | F29: 0.07454753853 | G29: <-- =LN(C29/C28)
A30: 2009-01-02 | B30: 90.13 | C30: 444.95 | E30: 0.05449262333 | F30: -0.08587764845 | G30: <-- =LN(C30/C29)
A31: 2009-02-02 | B31: 89.31 | C31: 485.63 | E31: -0.009139608873 | F31: 0.08748510078 | G31: <-- =LN(C31/C30)
A32: 2009-03-02 | B32: 105.12 | C32: 525.7 | E32: 0.162989091 | F32: 0.07928369075 | G32: <-- =LN(C32/C31)
A33: 2009-04-01 | B33: 125.83 | C33: 567.12 | E33: 0.1798292349 | F33: 0.07584021372 | G33: <-- =LN(C33/C32)
A34: 2009-05-01 | B34: 135.81 | C34: 526.8 | E34: 0.07632506051 | F34: -0.07374995168 | G34: <-- =LN(C34/C33)
A35: 2009-06-01 | B35: 142.43 | C35: 529.94 | E35: 0.04759380083 | F35: 0.005942822721 | G35: <-- =LN(C35/C34)
A36: 2009-07-01 | B36: 163.39 | C36: 619.98 | E36: 0.1372893301 | F36: 0.1569234269 | G36: <-- =LN(C36/C35)
A37: 2009-08-03 | B37: 168.21 | C37: 583 | E37: 0.02907321776 | F37: -0.0615000331 | G37: <-- =LN(C37/C36)
A38: 2009-09-01 | B38: 185.35 | C38: 536.12 | E38: 0.09703273079 | F38: -0.08382916974 | G38: <-- =LN(C38/C37)
A39: 2009-10-01 | B39: 188.5 | C39: 495.85 | E39: 0.01685207729 | F39: -0.07808455498 | G39: <-- =LN(C39/C38)
A40: 2009-11-02 | B40: 199.91 | C40: 461.67 | E40: 0.05876925838 | F40: -0.07142311149 | G40: <-- =LN(C40/C39)
A41: 2009-12-01 | B41: 210.73 | C41: 443.05 | E41: 0.05271042794 | F41: -0.04116771965 | G41: <-- =LN(C41/C40)
A42: 2010-01-04 | B42: 192.06 | C42: 421.59 | E42: -0.09276987 | F42: -0.04964935271 | G42: <-- =LN(C42/C41)
A43: 2010-02-01 | B43: 204.62 | C43: 417.23 | E43: 0.06334677724 | F43: -0.01039564928 | G43: <-- =LN(C43/C42)
A44: 2010-03-01 | B44: 235 | C44: 395.97 | E44: 0.1384309137 | F44: -0.05229917769 | G44: <-- =LN(C44/C43)
A45: 2010-04-01 | B45: 261.09 | C45: 348.06 | E45: 0.1052796613 | F45: -0.1289635721 | G45: <-- =LN(C45/C44)
A46: 2010-05-03 | B46: 256.88 | C46: 337.99 | E46: -0.01625612569 | F46: -0.02935856946 | G46: <-- =LN(C46/C45)
A47: 2010-06-01 | B47: 251.53 | C47: 338.53 | E47: -0.02104678306 | F47: 0.001596405471 | G47: <-- =LN(C47/C46)
A48: 2010-07-01 | B48: 257.25 | C48: 307.65 | E48: 0.02248610799 | F48: -0.09564994153 | G48: <-- =LN(C48/C47)
A49: 2010-08-02 | B49: 243.1 | C49: 292.96 | E49: -0.05657549339 | F49: -0.04892669226 | G49: <-- =LN(C49/C48)
A50: 2010-09-01 | B50: 283.75 | C50: 359.36 | E50: 0.1546206875 | F50: 0.2042885906 | G50: <-- =LN(C50/C49)
A51: 2010-10-01 | B51: 300.98 | C51: 400.52 | E51: 0.05895024856 | F51: 0.1084390313 | G51: <-- =LN(C51/C50)
A52: 2010-11-01 | B52: 311.15 | C52: 463.29 | E52: 0.03323129366 | F52: 0.1455895051 | G52: <-- =LN(C52/C51)
A53: 2010-12-01 | B53: 322.56 | C53: 473.75 | E53: 0.03601405443 | F53: 0.02232654849 | G53: <-- =LN(C53/C52)
A54: 2011-01-03 | B54: 339.32 | C54: 526.42 | E54: 0.0506544495 | F54: 0.1054196168 | G54: <-- =LN(C54/C53)
A55: 2011-02-01 | B55: 353.21 | C55: 585.8 | E55: 0.04011916596 | F55: 0.1068790612 | G55: <-- =LN(C55/C54)
A56: 2011-03-01 | B56: 348.51 | C56: 574.29 | E56: -0.01339585671 | F56: -0.01984393918 | G56: <-- =LN(C56/C55)
A57: 2011-04-01 | B57: 350.13 | C57: 440.47 | E57: 0.004637589899 | F57: -0.2652921566 | G57: <-- =LN(C57/C56)
A58: 2011-05-02 | B58: 347.83 | C58: 471.18 | E58: -0.006590659423 | F58: 0.06739784798 | G58: <-- =LN(C58/C57)
A59: 2011-06-01 | B59: 335.67 | C59: 564.3 | E59: -0.03558532018 | F59: 0.1803458384 | G59: <-- =LN(C59/C58)
A60: 2011-07-01 | B60: 390.48 | C60: 691.48 | E60: 0.1512482171 | F60: 0.2032482031 | G60: <-- =LN(C60/C59)
A61: 2011-08-01 | B61: 384.83 | C61: 693 | E61: -0.01457507325 | F61: 0.002195771135 | G61: <-- =LN(C61/C60)
A62: 2011-09-01 | B62: 381.32 | C62: 707 | E62: -0.009162760705 | F62: 0.02000066671 | G62: <-- =LN(C62/C61)
A63: 2011-10-03 | B63: 404.78 | C63: 567.27 | E63: 0.05970479201 | F63: -0.220195285 | G63: <-- =LN(C63/C62)
A64: 2011-11-01 | B64: 382.2 | C64: 515.25 | E64: -0.05739967783 | F64: -0.09618316109 | G64: <-- =LN(C64/C63)
A65: 2011-12-01 | B65: 405 | C65: 510 | E65: 0.0579430353 | F65: -0.01024149405 | G65: <-- =LN(C65/C64)
A66: 2012-01-03 | B66: 456.48 | C66: 522.7 | E66: 0.1196578204 | F66: 0.02459696 | G66: <-- =LN(C66/C65)
A67: 2012-02-01 | B67: 542.44 | C67: 497.91 | E67: 0.1725325928 | F67: -0.04858834792 | G67: <-- =LN(C67/C66)
A68: 2012-03-01 | B68: 599.55 | C68: 471.38 | E68: 0.1001018936 | F68: -0.05475477501
A69: 2012-04-02 | B69: 583.98 | C69: 458.16 | E69: -0.02631263816 | F69: -0.0284460947
A70: 2012-05-01 | B70: 577.73 | C70: 449.45 | E70: -0.01076010416 | F70: -0.01919385507
A71: 2012-06-01 | B71: 584 | C71: 501.5 | E71: 0.01079435132 | F71: 0.1095789944

Sheet Covariance
A1: COMPUTING COVARIANCE AND CORRELATION
B2: Stock returns | E2: Return minus average
A3: Date | B3: AAPL | C3: Google | E3: AAPL | F3: Google | G3: Product
A4: 2007-07-02 | B4: ='AAPL and Google'!E12 -> 0.07663322602 | C4: ='AAPL and Google'!F12 -> 0.1074269523 | D4: =ggetformula(E4)&" -->" -> =B4-$B$65 --> | E4: =B4-$B$65 -> 0.05054069064 | F4: =C4-$C$65 -> 0.1098538545 | G4: =E4*F4 -> 0.005552089677 | H4: =getformula(G4) -> <-- =E4*F4
A5: 2007-08-01 | B5: ='AAPL and Google'!E13 -> 0.049743825 | C5: ='AAPL and Google'!F13 -> -0.07473222165 | D5: =ggetformula(E5)&" -->" -> =B5-$B$65 --> | E5: =B5-$B$65 -> 0.02365128962 | F5: =C5-$C$65 -> -0.07230531942 | G5: =E5*F5 -> -0.00171011405 | H5: =getformula(G5) -> <-- =E5*F5
A6: 2007-09-04 | B6: ='AAPL and Google'!E14 -> 0.1027791973 | C6: ='AAPL and Google'!F14 -> -0.01132533938 | E6: 0.07668666194 | F6: -0.008898437153 | G6: -0.0006823914417
A7: 2007-10-01 | B7: ='AAPL and Google'!E15 -> 0.2132557714 | C7: ='AAPL and Google'!F15 -> -0.1403425645 | E7: 0.1871632361 | F7: -0.1379156622 | G7: -0.02581274165
A8: 2007-11-01 | B8: ='AAPL and Google'!E16 -> -0.04154613135 | C8: ='AAPL and Google'!F16 -> 0.04910077141 | E8: -0.06763866673 | F8: 0.05152767363 | G8: -0.003485263144
A9: 2007-12-03 | B9: ='AAPL and Google'!E17 -> 0.08345624121 | C9: ='AAPL and Google'!F17 -> 0.1097154822 | E9: 0.05736370583 | F9: 0.1121423844 | G9: 0.00643290275
A10: 2008-01-02 | B10: ='AAPL and Google'!E18 -> -0.3807330936 | C10: ='AAPL and Google'!F18 -> -0.1757734456 | E10: -0.406825629 | F10: -0.1733465433 | G10: 0.07052181653
A11: 2008-02-01 | B11: ='AAPL and Google'!E19 -> -0.07946417135 | C11: ='AAPL and Google'!F19 -> 0.04373886275 | E11: -0.1055567067 | F11: 0.04616576497 | G11: -0.004873106114
A12: 2008-03-03 | B12: ='AAPL and Google'!E20 -> 0.1378613107 | C12: ='AAPL and Google'!F20 -> 0.02810681516 | E12: 0.1117687753 | F12: 0.03053371739 | G12: 0.003412716198
A13: 2008-04-01 | B13: ='AAPL and Google'!E21 -> 0.1924328664 | C13: ='AAPL and Google'!F21 -> 0.07548282413 | E13: 0.166340331 | F13: 0.07790972635 | G13: 0.01295952967
A14: 2008-05-01 | B14: ='AAPL and Google'!E22 -> 0.08165548653 | C14: ='AAPL and Google'!F22 -> 0.04440137406 | E14: 0.05556295115 | F14: 0.04682827628 | G14: 0.002601917227
A15: 2008-06-02 | B15: ='AAPL and Google'!E23 -> -0.11979831 | C15: ='AAPL and Google'!F23 -> -0.02148777639 | E15: -0.1458908454 | F15: -0.01906087417 | G15: 0.002780807046
A16: 2008-07-01 | B16: ='AAPL and Google'!E24 -> -0.05203539078 | C16: ='AAPL and Google'!F24 -> -0.01070066225 | E16: -0.07812792616 | F16: -0.008273760029 | G16: 0.0006464117127
A17: 2008-08-01 | B17: ='AAPL and Google'!E25 -> 0.06444021495 | C17: ='AAPL and Google'!F25 -> -0.06658223759 | E17: 0.03834767957 | F17: -0.06415533537 | G17: -0.002460208243
A18: 2008-09-02 | B18: ='AAPL and Google'!E26 -> -0.3998183664 | C18: ='AAPL and Google'!F26 -> 0.09925963395 | E18: -0.4259109018 | F18: 0.1016865362 | G18: -0.04330940432
A19: 2008-10-01 | B19: ='AAPL and Google'!E27 -> -0.05488382926 | C19: ='AAPL and Google'!F27 -> -0.1546043159 | E19: -0.08097636465 | F19: -0.1521774137 | G19: 0.01232277374
A20: 2008-11-03 | B20: ='AAPL and Google'!E28 -> -0.149282911 | C20: ='AAPL and Google'!F28 -> -0.1556098673 | E20: -0.1753754464 | F20: -0.153182965 | G20: 0.02686453087
A21: 2008-12-01 | B21: ='AAPL and Google'!E29 -> -0.08228434636 | C21: ='AAPL and Google'!F29 -> 0.07454753853 | E21: -0.1083768817 | F21: 0.07697444075 | G21: -0.008342249862
A22: 2009-01-02 | B22: ='AAPL and Google'!E30 -> 0.05449262333 | C22: ='AAPL and Google'!F30 -> -0.08587764845 | E22: 0.02840008794 | F22: -0.08345074623 | G22: -0.002370008532
A23: 2009-02-02 | B23: ='AAPL and Google'!E31 -> -0.009139608873 | C23: ='AAPL and Google'!F31 -> 0.08748510078 | E23: -0.03523214426 | F23: 0.089912003 | G23: -0.00316779266
A24: 2009-03-02 | B24: ='AAPL and Google'!E32 -> 0.162989091 | C24: ='AAPL and Google'!F32 -> 0.07928369075 | E24: 0.1368965557 | F24: 0.08171059297 | G24: 0.01118589874
A25: 2009-04-01 | B25: ='AAPL and Google'!E33 -> 0.1798292349 | C25: ='AAPL and Google'!F33 -> 0.07584021372 | E25: 0.1537366995 | F25: 0.07826711594 | G25: 0.01203252808
A26: 2009-05-01 | B26: ='AAPL and Google'!E34 -> 0.07632506051 | C26: ='AAPL and Google'!F34 -> -0.07374995168 | E26: 0.05023252513 | F26: -0.07132304946 | G26: -0.003582736874
A27: 2009-06-01 | B27: ='AAPL and Google'!E35 -> 0.04759380083 | C27: ='AAPL and Google'!F35 -> 0.005942822721 | E27: 0.02150126545 | F27: 0.008369724944 | G27: 0.0001799596777
A28: 2009-07-01 | B28: ='AAPL and Google'!E36 -> 0.1372893301 | C28: ='AAPL and Google'!F36 -> 0.1569234269 | E28: 0.1111967947 | F28: 0.1593503291 | G28: 0.01771924583
A29: 2009-08-03 | B29: ='AAPL and Google'!E37 -> 0.02907321776 | C29: ='AAPL and Google'!F37 -> -0.0615000331 | E29: 0.002980682378 | F29: -0.05907313088 | G29: -0.0001760782402
A30: 2009-09-01 | B30: ='AAPL and Google'!E38 -> 0.09703273079 | C30: ='AAPL and Google'!F38 -> -0.08382916974 | E30: 0.07094019541 | F30: -0.08140226752 | G30: -0.005774692765
A31: 2009-10-01 | B31: ='AAPL and Google'!E39 -> 0.01685207729 | C31: ='AAPL and Google'!F39 -> -0.07808455498 | E31: -0.009240458092 | F31: -0.07565765276 | G31: 0.0006991113696
A32: 2009-11-02 | B32: ='AAPL and Google'!E40 -> 0.05876925838 | C32: ='AAPL and Google'!F40 -> -0.07142311149 | E32: 0.032676723 | F32: -0.06899620927 | G32: -0.002254570018
A33: 2009-12-01 | B33: ='AAPL and Google'!E41 -> 0.05271042794 | C33: ='AAPL and Google'!F41 -> -0.04116771965 | E33: 0.02661789256 | F33: -0.03874081743 | G33: -0.001031198916
A34: 2010-01-04 | B34: ='AAPL and Google'!E42 -> -0.09276987 | C34: ='AAPL and Google'!F42 -> -0.04964935271 | E34: -0.1188624054 | F34: -0.04722245049 | G34: 0.005612974053
A35: 2010-02-01 | B35: ='AAPL and Google'!E43 -> 0.06334677724 | C35: ='AAPL and Google'!F43 -> -0.01039564928 | E35: 0.03725424186 | F35: -0.007968747059 | G35: -0.0002968696303
A36: 2010-03-01 | B36: ='AAPL and Google'!E44 -> 0.1384309137 | C36: ='AAPL and Google'!F44 -> -0.05229917769 | E36: 0.1123383783 | F36: -0.04987227547 | G36: -0.005602570549
A37: 2010-04-01 | B37: ='AAPL and Google'!E45 -> 0.1052796613 | C37: ='AAPL and Google'!F45 -> -0.1289635721 | E37: 0.07918712594 | F37: -0.1265366699 | G37: -0.01002007521
A38: 2010-05-03 | B38: ='AAPL and Google'!E46 -> -0.01625612569 | C38: ='AAPL and Google'!F46 -> -0.02935856946 | E38: -0.04234866107 | F38: -0.02693166724 | G38: 0.001140520048
A39: 2010-06-01 | B39: ='AAPL and Google'!E47 -> -0.02104678306 | C39: ='AAPL and Google'!F47 -> 0.001596405471 | E39: -0.04713931844 | F39: 0.004023307693 | G39: -0.0001896559826
A40: 2010-07-01 | B40: ='AAPL and Google'!E48 -> 0.02248610799 | C40: ='AAPL and Google'!F48 -> -0.09564994153 | E40: -0.003606427389 | F40: -0.09322303931 | G40: 0.0003362021223
A41: 2010-08-02 | B41: ='AAPL and Google'!E49 -> -0.05657549339 | C41: ='AAPL and Google'!F49 -> -0.04892669226 | E41: -0.08266802878 | F41: -0.04649979004 | G41: 0.003844045981
A42: 2010-09-01 | B42: ='AAPL and Google'!E50 -> 0.1546206875 | C42: ='AAPL and Google'!F50 -> 0.2042885906 | E42: 0.1285281521 | F42: 0.2067154928 | G42: 0.0265687603
A43: 2010-10-01 | B43: ='AAPL and Google'!E51 -> 0.05895024856 | C43: ='AAPL and Google'!F51 -> 0.1084390313 | E43: 0.03285771318 | F43: 0.1108659335 | G43: 0.003642801045
A44: 2010-11-01 | B44: ='AAPL and Google'!E52 -> 0.03323129366 | C44: ='AAPL and Google'!F52 -> 0.1455895051 | E44: 0.007138758274 | F44: 0.1480164073 | G44: 0.001056653352
A45: 2010-12-01 | B45: ='AAPL and Google'!E53 -> 0.03601405443 | C45: ='AAPL and Google'!F53 -> 0.02232654849 | E45: 0.009921519045 | F45: 0.02475345072 | G45: 0.0002455918327
A46: 2011-01-03 | B46: ='AAPL and Google'!E54 -> 0.0506544495 | C46: ='AAPL and Google'!F54 -> 0.1054196168 | E46: 0.02456191411 | F46: 0.107846519 | G46: 0.002648916938
A47: 2011-02-01 | B47: ='AAPL and Google'!E55 -> 0.04011916596 | C47: ='AAPL and Google'!F55 -> 0.1068790612 | E47: 0.01402663058 | F47: 0.1093059634 | G47: 0.001533194369
A48: 2011-03-01 | B48: ='AAPL and Google'!E56 -> -0.01339585671 | C48: ='AAPL and Google'!F56 -> -0.01984393918 | E48: -0.03948839209 | F48: -0.01741703696 | G48: 0.0006877707843
A49: 2011-04-01 | B49: ='AAPL and Google'!E57 -> 0.004637589899 | C49: ='AAPL and Google'!F57 -> -0.2652921566 | E49: -0.02145494548 | F49: -0.2628652544 | G49: 0.005639759702
A50: 2011-05-02 | B50: ='AAPL and Google'!E58 -> -0.006590659423 | C50: ='AAPL and Google'!F58 -> 0.06739784798 | E50: -0.03268319481 | F50: 0.06982475021 | G50: -0.002282095913
A51: 2011-06-01 | B51: ='AAPL and Google'!E59 -> -0.03558532018 | C51: ='AAPL and Google'!F59 -> 0.1803458384 | E51: -0.06167785556 | F51: 0.1827727406 | G51: -0.01127303069
A52: 2011-07-01 | B52: ='AAPL and Google'!E60 -> 0.1512482171 | C52: ='AAPL and Google'!F60 -> 0.2032482031 | E52: 0.1251556817 | F52: 0.2056751053 | G52: 0.02574140801
A53: 2011-08-01 | B53: ='AAPL and Google'!E61 -> -0.01457507325 | C53: ='AAPL and Google'!F61 -> 0.002195771135 | E53: -0.04066760863 | F53: 0.004622673357 | G53: -0.0001879930709
A54: 2011-09-01 | B54: ='AAPL and Google'!E62 -> -0.009162760705 | C54: ='AAPL and Google'!F62 -> 0.02000066671 | E54: -0.03525529609 | F54: 0.02242756893 | G54: -0.0007906905831
A55: 2011-10-03 | B55: ='AAPL and Google'!E63 -> 0.05970479201 | C55: ='AAPL and Google'!F63 -> -0.220195285 | E55: 0.03361225663 | F55: -0.2177683828 | G55: -0.007319686769
A56: 2011-11-01 | B56: ='AAPL and Google'!E64 -> -0.05739967783 | C56: ='AAPL and Google'!F64 -> -0.09618316109 | E56: -0.08349221321 | F56: -0.09375625887 | G56: 0.007827917556
A57: 2011-12-01 | B57: ='AAPL and Google'!E65 -> 0.0579430353 | C57: ='AAPL and Google'!F65 -> -0.01024149405 | E57: 0.03185049992 | F57: -0.00781459183 | G57: -0.0002488986564
A58: 2012-01-03 | B58: ='AAPL and Google'!E66 -> 0.1196578204 | C58: ='AAPL and Google'!F66 -> 0.02459696 | E58: 0.09356528498 | F58: 0.02702386222 | G58: 0.00252849537
A59: 2012-02-01 | B59: ='AAPL and Google'!E67 -> 0.1725325928 | C59: ='AAPL and Google'!F67 -> -0.04858834792 | E59: 0.1464400574 | F59: -0.0461614457 | G59: -0.006759884756
A60: 2012-03-01 | B60: ='AAPL and Google'!E68 -> 0.1001018936 | C60: ='AAPL and Google'!F68 -> -0.05475477501 | E60: 0.07400935822 | F60: -0.05232787279 | G60: -0.003872752282
A61: 2012-04-02 | B61: ='AAPL and Google'!E69 -> -0.02631263816 | C61: ='AAPL and Google'!F69 -> -0.0284460947 | E61: -0.05240517354 | F61: -0.02601919248 | G61: 0.001363540297
A62: 2012-05-01 | B62: ='AAPL and Google'!E70 -> -0.01076010416 | C62: ='AAPL and Google'!F70 -> -0.01919385507 | E62: -0.03685263954 | F62: -0.01676695284 | G62: 0.0006179064694
A63: 2012-06-01 | B63: ='AAPL and Google'!E71 -> 0.01079435132 | C63: ='AAPL and Google'!F71 -> 0.1095789944 | E63: -0.01529818406 | F63: 0.1120058966 | G63: -0.001713486822
A65: Average | B65: =AVERAGE(B4:B63) -> 0.02609253538 | C65: =AVERAGE(C4:C63) -> -0.002426902222
A66: Variance | B66: =_xlfn.VAR.S(B4:B63) -> 0.01247769069 | C66: =_xlfn.VAR.S(C4:C63) -> 0.01017518017 | D66: =getformula(C66) -> <-- =VAR.S(C4:C63) | F66: Covariance computation
A67: Standard deviation | B67: =_xlfn.STDEV.S(B4:B63) -> 0.1117035841 | C67: =_xlfn.STDEV.S(C4:C63) -> 0.1008720981 | D67: =getformula(C67) -> <-- =STDEV.S(C4:C63) | G67: =AVERAGE(G4:G63) -> 0.00195597416 | H67: =getformula(G67) -> <-- =AVERAGE(G4:G63)
B68: =SQRT(B66) -> 0.1117035841 | C68: =SQRT(C66) -> 0.1008720981 | D68: =getformula(C68) -> <-- =SQRT(C66) | G68: =_xlfn.COVARIANCE.P(B4:B63,C4:C63) -> 0.00195597416 | H68: =getformula(G68) -> <-- =COVARIANCE.P(B4:B63,C4:C63)
G69: =COVAR(B4:B63,C4:C63) -> 0.00195597416 | H69: =getformula(G69) -> <-- =COVAR(B4:B63,C4:C63)
B70: =_xlfn.VAR.P(B4:B63) -> 0.01226972918 | C70: =_xlfn.VAR.P(C4:C63) -> 0.01000559383 | D70: =getformula(C70) -> <-- =VAR.P(C4:C63) | G70: =AVERAGE(G4:G63)*60/59 -> 0.001989126265 | H70: =getformula(G70) -> <-- =AVERAGE(G4:G63)*60/59
B71: =_xlfn.STDEV.P(B4:B63) -> 0.1107688096 | C71: =_xlfn.STDEV.P(C4:C63) -> 0.1000279653 | D71: =getformula(C71) -> <-- =STDEV.P(C4:C63) | G71: =_xlfn.COVARIANCE.S(B4:B63,C4:C63) -> 0.001989126265 | H71: =getformula(G71) -> <-- =COVARIANCE.S(B4:B63,C4:C63)
B72: =SQRT(B70) -> 0.1107688096 | C72: =SQRT(C70) -> 0.1000279653 | D72: <-- =SQRT(C70)
F73: Correlation computation
G74: =CORREL(B4:B63,C4:C63) -> 0.1765323043 | H74: =getformula(G74) -> <-- =CORREL(B4:B63,C4:C63)
G75: =G68/(B71*C71) -> 0.1765323043 | H75: =getformula(G75) -> <-- =G68/(B71*C71)
G76: =G71/(B67*C67) -> 0.1765323043 | H76: =getformula(G76) -> <-- =G71/(B67*C67)

Sheet AAPL, GOOG trendline
A1: USING TRENDLINE ON APPLE, GOOGLE RETURNS
A3: Date | B3: AAPL | C3: Google
A4: 2007-07-02 | B4: ='AAPL and Google'!E12 -> 0.07663322602 | C4: ='AAPL and Google'!F12 -> 0.1074269523
A5: 2007-08-01 | B5: ='AAPL and Google'!E13 -> 0.049743825 | C5: ='AAPL and Google'!F13 -> -0.07473222165
A6: 2007-09-04 | B6: ='AAPL and Google'!E14 -> 0.1027791973 | C6: ='AAPL and Google'!F14 -> -0.01132533938
A7: 2007-10-01 | B7: ='AAPL and Google'!E15 -> 0.2132557714 | C7: ='AAPL and Google'!F15 -> -0.1403425645
A8: 2007-11-01 | B8: ='AAPL and Google'!E16 -> -0.04154613135 | C8: ='AAPL and Google'!F16 -> 0.04910077141
A9: 2007-12-03 | B9: ='AAPL and Google'!E17 -> 0.08345624121 | C9: ='AAPL and Google'!F17 -> 0.1097154822
A10: 2008-01-02 | B10: ='AAPL and Google'!E18 -> -0.3807330936 | C10: ='AAPL and Google'!F18 -> -0.1757734456
A11: 2008-02-01 | B11: ='AAPL and Google'!E19 -> -0.07946417135 | C11: ='AAPL and Google'!F19 -> 0.04373886275
A12: 2008-03-03 | B12: ='AAPL and Google'!E20 -> 0.1378613107 | C12: ='AAPL and Google'!F20 -> 0.02810681516
A13: 2008-04-01 | B13: ='AAPL and Google'!E21 -> 0.1924328664 | C13: ='AAPL and Google'!F21 -> 0.07548282413
A14: 2008-05-01 | B14: ='AAPL and Google'!E22 -> 0.08165548653 | C14: ='AAPL and Google'!F22 -> 0.04440137406
A15: 2008-06-02 | B15: ='AAPL and Google'!E23 -> -0.11979831 | C15: ='AAPL and Google'!F23 -> -0.02148777639
A16: 2008-07-01 | B16: ='AAPL and Google'!E24 -> -0.05203539078 | C16: ='AAPL and Google'!F24 -> -0.01070066225
A17: 2008-08-01 | B17: ='AAPL and Google'!E25 -> 0.06444021495 | C17: ='AAPL and Google'!F25 -> -0.06658223759
A18: 2008-09-02 | B18: ='AAPL and Google'!E26 -> -0.3998183664 | C18: ='AAPL and Google'!F26 -> 0.09925963395
A19: 2008-10-01 | B19: ='AAPL and Google'!E27 -> -0.05488382926 | C19: ='AAPL and Google'!F27 -> -0.1546043159
A20: 2008-11-03 | B20: ='AAPL and Google'!E28 -> -0.149282911 | C20: ='AAPL and Google'!F28 -> -0.1556098673
A21: 2008-12-01 | B21: ='AAPL and Google'!E29 -> -0.08228434636 | C21: ='AAPL and Google'!F29 -> 0.07454753853
A22: 2009-01-02 | B22: ='AAPL and Google'!E30 -> 0.05449262333 | C22: ='AAPL and Google'!F30 -> -0.08587764845
A23: 2009-02-02 | B23: ='AAPL and Google'!E31 -> -0.009139608873 | C23: ='AAPL and Google'!F31 -> 0.08748510078
A24: 2009-03-02 | B24: ='AAPL and Google'!E32 -> 0.162989091 | C24: ='AAPL and Google'!F32 -> 0.07928369075
A25: 2009-04-01 | B25: ='AAPL and Google'!E33 -> 0.1798292349 | C25: ='AAPL and Google'!F33 -> 0.07584021372
A26: 2009-05-01 | B26: ='AAPL and Google'!E34 -> 0.07632506051 | C26: ='AAPL and Google'!F34 -> -0.07374995168
A27: 2009-06-01 | B27: ='AAPL and Google'!E35 -> 0.04759380083 | C27: ='AAPL and Google'!F35 -> 0.005942822721
A28: 2009-07-01 | B28: ='AAPL and Google'!E36 -> 0.1372893301 | C28: ='AAPL and Google'!F36 -> 0.1569234269
A29: 2009-08-03 | B29: ='AAPL and Google'!E37 -> 0.02907321776 | C29: ='AAPL and Google'!F37 -> -0.0615000331
A30: 2009-09-01 | B30: ='AAPL and Google'!E38 -> 0.09703273079 | C30: ='AAPL and Google'!F38 -> -0.08382916974
A31: 2009-10-01 | B31: ='AAPL and Google'!E39 -> 0.01685207729 | C31: ='AAPL and Google'!F39 -> -0.07808455498
A32: 2009-11-02 | B32: ='AAPL and Google'!E40 -> 0.05876925838 | C32: ='AAPL and Google'!F40 -> -0.07142311149
A33: 2009-12-01 | B33: ='AAPL and Google'!E41 -> 0.05271042794 | C33: ='AAPL and Google'!F41 -> -0.04116771965
A34: 2010-01-04 | B34: ='AAPL and Google'!E42 -> -0.09276987 | C34: ='AAPL and Google'!F42 -> -0.04964935271
A35: 2010-02-01 | B35: ='AAPL and Google'!E43 -> 0.06334677724 | C35: ='AAPL and Google'!F43 -> -0.01039564928
A36: 2010-03-01 | B36: ='AAPL and Google'!E44 -> 0.1384309137 | C36: ='AAPL and Google'!F44 -> -0.05229917769
A37: 2010-04-01 | B37: ='AAPL and Google'!E45 -> 0.1052796613 | C37: ='AAPL and Google'!F45 -> -0.1289635721
A38: 2010-05-03 | B38: ='AAPL and Google'!E46 -> -0.01625612569 | C38: ='AAPL and Google'!F46 -> -0.02935856946
A39: 2010-06-01 | B39: ='AAPL and Google'!E47 -> -0.02104678306 | C39: ='AAPL and Google'!F47 -> 0.001596405471
A40: 2010-07-01 | B40: ='AAPL and Google'!E48 -> 0.02248610799 | C40: ='AAPL and Google'!F48 -> -0.09564994153
A41: 2010-08-02 | B41: ='AAPL and Google'!E49 -> -0.05657549339 | C41: ='AAPL and Google'!F49 -> -0.04892669226
A42: 2010-09-01 | B42: ='AAPL and Google'!E50 -> 0.1546206875 | C42: ='AAPL and Google'!F50 -> 0.2042885906
A43: 2010-10-01 | B43: ='AAPL and Google'!E51 -> 0.05895024856 | C43: ='AAPL and Google'!F51 -> 0.1084390313
A44: 2010-11-01 | B44: ='AAPL and Google'!E52 -> 0.03323129366 | C44: ='AAPL and Google'!F52 -> 0.1455895051
A45: 2010-12-01 | B45: ='AAPL and Google'!E53 -> 0.03601405443 | C45: ='AAPL and Google'!F53 -> 0.02232654849
A46: 2011-01-03 | B46: ='AAPL and Google'!E54 -> 0.0506544495 | C46: ='AAPL and Google'!F54 -> 0.1054196168
A47: 2011-02-01 | B47: ='AAPL and Google'!E55 -> 0.04011916596 | C47: ='AAPL and Google'!F55 -> 0.1068790612
A48: 2011-03-01 | B48: ='AAPL and Google'!E56 -> -0.01339585671 | C48: ='AAPL and Google'!F56 -> -0.01984393918
A49: 2011-04-01 | B49: ='AAPL and Google'!E57 -> 0.004637589899 | C49: ='AAPL and Google'!F57 -> -0.2652921566
A50: 2011-05-02 | B50: ='AAPL and Google'!E58 -> -0.006590659423 | C50: ='AAPL and Google'!F58 -> 0.06739784798
A51: 2011-06-01 | B51: ='AAPL and Google'!E59 -> -0.03558532018 | C51: ='AAPL and Google'!F59 -> 0.1803458384
A52: 2011-07-01 | B52: ='AAPL and Google'!E60 -> 0.1512482171 | C52: ='AAPL and Google'!F60 -> 0.2032482031
A53: 2011-08-01 | B53: ='AAPL and Google'!E61 -> -0.01457507325 | C53: ='AAPL and Google'!F61 -> 0.002195771135
A54: 2011-09-01 | B54: ='AAPL and Google'!E62 -> -0.009162760705 | C54: ='AAPL and Google'!F62 -> 0.02000066671
A55: 2011-10-03 | B55: ='AAPL and Google'!E63 -> 0.05970479201 | C55: ='AAPL and Google'!F63 -> -0.220195285
A56: 2011-11-01 | B56: ='AAPL and Google'!E64 -> -0.05739967783 | C56: ='AAPL and Google'!F64 -> -0.09618316109
A57: 2011-12-01 | B57: ='AAPL and Google'!E65 -> 0.0579430353 | C57: ='AAPL and Google'!F65 -> -0.01024149405
A58: 2012-01-03 | B58: ='AAPL and Google'!E66 -> 0.1196578204 | C58: ='AAPL and Google'!F66 -> 0.02459696
A59: 2012-02-01 | B59: ='AAPL and Google'!E67 -> 0.1725325928 | C59: ='AAPL and Google'!F67 -> -0.04858834792
A60: 2012-03-01 | B60: ='AAPL and Google'!E68 -> 0.1001018936 | C60: ='AAPL and Google'!F68 -> -0.05475477501
A61: 2012-04-02 | B61: ='AAPL and Google'!E69 -> -0.02631263816 | C61: ='AAPL and Google'!F69 -> -0.0284460947
A62: 2012-05-01 | B62: ='AAPL and Google'!E70 -> -0.01076010416 | C62: ='AAPL and Google'!F70 -> -0.01919385507
A63: 2012-06-01 | B63: ='AAPL and Google'!E71 -> 0.01079435132 | C63: ='AAPL and Google'!F71 -> 0.1095789944

Sheet Not efficient
A1: A FOUR-ASSET PORTFOLIO PROBLEM
A2: Variance-covariance, S | F2: Mean returns E(r)
A3: 0.1 | B3: 0.01 | C3: 0.03 | D3: 0.05 | F3: 0.06
A4: 0.01 | B4: 0.3 | C4: 0.06 | D4: -0.04 | F4: 0.08
A5: 0.03 | B5: 0.06 | C5: 0.4 | D5: 0.02 | F5: 0.1
A6: 0.05 | B6: -0.04 | C6: 0.02 | D6: 0.5 | F6: 0.15
A8: Portfolio x | B8: 0.2 | C8: 0.3 | D8: 0.4 | E8: 0.1
A9: Portfolio y | B9: 0.2 | C9: 0.1 | D9: 0.1 | E9: 0.6
A11: Portfolio x and y statistics: Mean, variance, covariance, correlation
A12: Mean, E(rx) | B12: =MMULT(B8:E8,F3:F6) -> 0.091 | D12: Mean, E(ry) | E12: =MMULT(B9:E9,F3:F6) -> 0.12 | F12: =getformula(E12) -> <-- {=MMULT(B9:E9,F3:F6)}
A13: Variance sx2 | B13: =MMULT(MMULT(B8:E8,A3:D6),TRANSPOSE(B8:E8)) -> 0.1216 | D13: Variance sy2 | E13: =MMULT(MMULT(B9:E9,A3:D6),TRANSPOSE(B9:E9)) -> 0.2034 | F13: =getformula(E13) -> <-- {=MMULT(MMULT(B9:E9,A3:D6),TRANSPOSE(B9:E9))}
A14: Covariance(x,y) | B14: =MMULT(MMULT(B8:E8,A3:D6),TRANSPOSE(B9:E9)) -> 0.0714
A15: Correlation rxy | B15: =B14/SQRT(B13*E13) -> 0.4540001016 | C15: =getformula(B15) -> <-- =B14/SQRT(B13*E13)
A17: Calculating returns of combinations of Portfolio x and Portfolio y
A18: Proportion of x | B18: 0.7244784736
A19: Mean portfolio return, E(rp) | B19: =B18*B12+(1-B18)*E12 -> 0.09899012427 | C19: =getformula(B19) -> <-- =B18*B12+(1-B18)*E12
A20: Portfolio variance sp2 | B20: =B18^2*B13+(1-B18)^2*E13+2*B18*(1-B18)*B14 -> 0.1077688255 | C20: =getformula(B20) -> <-- =B18^2*B13+(1-B18)^2*E13+2*B18*(1-B18)*B14
A21: Portfolio standard deviation sp | B21: =SQRT(B20) -> 0.3282816252 | C21: =getformula(B21) -> <-- =SQRT(B20)
A23: Table of returns (using Data Table)
A24: Proportion of x | B24: Standard deviation | C24: Mean
B25: =B21 -> 0.3282816252 | C25: =B19 -> 0.09899012427
A26: -1 | B26: 0.8059776672 | C26: 0.149 | D26: =C26 -> 0.149
A27: -0.8 | B27: 0.7288401745 | C27: 0.1432 | D27: =C27 -> 0.1432
A28: -0.6 | B28: 0.6537522467 | C28: 0.1374 | D28: 0.1374
A29: -0.4 | B29: 0.5815083834 | C29: 0.1316 | D29: 0.1316
A30: -0.2 | B30: 0.513310822 | C30: 0.1258 | D30: 0.1258
A31: 0 | B31: 0.4509988914 | C31: 0.12 | D31: 0.12
A32: 0.2 | B32: 0.39735123 | C32: 0.1142 | D32: 0.1142
A33: 0.4 | B33: 0.3563032416 | C33: 0.1084 | D33: 0.1084
A34: 0.6 | B34: 0.3325537551 | C34: 0.1026 | D34: 0.1026
A35: 0.7244784736 | B35: 0.3282816252 | C35: 0.09899012427 | D35: 0.09899012427
A36: 1 | B36: 0.3487119155 | C36: 0.091
A37: 1.2 | B37: 0.3859637289 | C37: 0.0852
A38: 1.4 | B38: 0.4369347777 | C38: 0.0794
A39: 1.6 | B39: 0.4974253713 | C39: 0.0736
A40: 1.8 | B40: 0.5643828488 | C40: 0.0678
A41: 2 | B41: 0.635767253 | C41: 0.062
A42: 2.2 | B42: 0.7102450281 | C42: 0.0562
A43: 2.4 | B43: 0.7869383712 | C43: 0.0504
A44: 2.6 | B44: 0.8652583429 | C44: 0.0446
A45: 2.7 | B45: 0.9048966792 | C45: 0.0417
A46: Stock1 | B46: =SQRT(A3) -> 0.316227766 | D46: =F3 -> 0.06
A47: Stock2 | B47: =SQRT(B4) -> 0.5477225575 | D47: =F4 -> 0.08
A48: Stock3 | B48: =SQRT(C5) -> 0.632455532 | D48: 0.1
A49: Stock4 | B49: =SQRT(D6) -> 0.7071067812 | D49: 0.15
A54: Minimum variance portfolio
